[Event "German Bundesliga 2021-22"]
[Site "Germany"]
[Date "2022.05.01"]
[Round "6.10"]
[White "Areshchenko, Alexander"]
[Black "Nagy, Gabor"]
[Result "1-0"]
[ECO "B69"]
[WhiteElo "2670"]
[BlackElo "2530"]
[Annotator "TA"]
[PlyCount "113"]
[EventDate "2022.03.05"]
[EventType "team-tourn"]
[EventCountry "GER"]
[SourceTitle "playchess.com"]
[Source "ChessBase"]
[SourceQuality "1"]
[TimeControl "40/5400+30:1800+30"]

{[%evp 30,113,44,35,32,0,14,0,20,0,0,0,28,30,23,27,31,24,61,56,42,48,56,51,75,82,96,73,98,87,123,109,164,160,196,197,202,195,174,179,190,194,270,231,293,239,256,262,385,280,250,252,242,270,293,266,261,242,239,239,245,236,320,321,325,297,315,310,407,399,447,442,568,561,743,737,739,726,717,712,695,679,680,618,891,843]} 1. e4 {[%emt 0:00:00]} c5 {[%emt 0:00:00]} 2. Nf3 {[%emt 0:00:00]} d6 {[%emt 0:00:00]} 3. d4 {[%emt 0:00:00]} cxd4 {[%emt 0:00:00]} 4. Nxd4 {[%emt 0:00:00]} Nf6 {[%emt 0:00:00]} 5. Nc3 {[%emt 0:00:00]} Nc6 {[%emt 0:00:00]} 6. Bg5 {[%emt 0:00:00]} Bd7 {[%emt 0:00:00]} 7. Qd2 {[%emt 0:00:00]} a6 {[%emt 0:00:00]} 8. O-O-O {[%emt 0:00:00]} e6 {[%emt 0:00:00]} 9. f4 {[%emt 0:00:00]} Be7 {[%emt 0:00:00]} 10. Nf3 {[%emt 0:00:05]} b5 {[%emt 0:00:00]} 11. Bxf6 {[%emt 0:01:44]} gxf6 {[%emt 0:00:00]} 12. Kb1 {[%emt 0:00:57]} Qb6 {[%emt 0:00:00]} 13. f5 {[%emt 0:22:35]} O-O-O {[%emt 0:00:00]} 14. g3 {[%emt 0:12:12]} Kb8 {[%emt 0:00:00]} 15. fxe6 {[%emt 0:04:12]} fxe6 {[%emt 0:00:00]} 16. Bh3 {[%emt 0:00:15]} Na5 {[%emt 0:00:00][%cal Bc6a5,Ba5c4,Bc4e3][%mdl 32] is currently scoring better than 16...Bc8. B69: Sicilian: Richter-Rauzer: 7...a6 8 0-0-0 Bd7 9 f4 Be7 10 Nf3 b5 11 Bxf6.} 17. Nd4 {[%emt 0:08:06]} b4 $1 {[%emt 0:00:00]} 18. Nce2 {[%emt 0:00:46]} e5 {[%emt 0:00:00] The position is equal.} (18... Nc4 19. Qd3 d5 20. exd5 $16) 19. Nf5 $5 {[%emt 0:08:43][%mdl 4] An interesting side line.} Bxf5 {[%emt 0:01:25]} 20. Bxf5 {[%emt 0:02:09]} d5 {[%emt 0:04:30]} 21. exd5 {[%emt 0:05:49]} Nc4 {[%emt 0:00:26]} 22. Qd3 {[%emt 0:03:37][%csl LRc4,LRh7]} Ne3 {[%emt 0:00:22]} 23. Qe4 {[%emt 0:08:02] [#]} Qc5 $146 {[%emt 0:14:39][%cal Rd8d5]} ({Predecessor:} 23... Nxd1 24. Rxd1 h5 25. c4 h4 26. g4 h3 27. Ng3 b3 28. axb3 Qxb3 29. Qc2 Qb4 {½-½ (46) Mazur,S (2426)-Nayhebaver,M (2473) Ruzomberok 2019}) 24. Nc1 {[%emt 0:09:34] Hoping for Nb3.} Nxd1 {[%emt 0:15:50]} 25. Rxd1 {[%emt 0:00:03]} Rd6 {[%emt 0:00:30]} 26. Be6 {[%emt 0:02:43][%mdl 1024] White has compensation.} h5 {[%emt 0:06:56]} 27. Nd3 {[%emt 0:02:36] White now steadily converts the win.} Qb5 {[%emt 0:02:48]} 28. Rc1 {[%emt 0:02:50][%cal Bd1c1,Bc1e1,Be1e4][%mdl 32]} (28. Qxb4 Qxb4 29. Nxb4 Rxe6 $1 30. dxe6 Bxb4 $17) 28... Rhd8 {[%emt 0:02:49]} 29. Qh7 {[%emt 0:00:40]} Bf8 {[%emt 0:07:00]} 30. Qxh5 {[%emt 0:00:51] White is much more active.} Qc4 {[%emt 0:00:13]} (30... e4 $16 {was called for.} 31. Nf4 Qc4) 31. Qf5 $36 {[%emt 0:01:47][%mdl 2048] White is on the roll.} Bg7 {[%emt 0:04:30]} 32. Re1 {[%emt 0:02:16] Re4 is the strong threat.} a5 {[%emt 0:00:45]} 33. Re4 {[%emt 0:00:27]} Qc7 {[%emt 0:00:23]} 34. h4 {[%emt 0:02:26][%cal Bh2h4,Bh4h5][%mdl 32]} Qb6 {[%emt 0:00:42]} 35. Re1 {[%emt 0:00:09] Against Qg1} Ka7 {[%emt 0:01:16]} (35... Bh6 $142 36. g4 (36. Qxf6 Rxd5 37. Qxh6 Re8 $16) 36... Bd2) 36. h5 {[%emt 0:01:05]} Qc7 {[%emt 0:02:02]} 37. Re4 {[%emt 0:01:38]} Rb6 {[%emt 0:02:22]} 38. b3 {[%emt 0:00:33] Threatens to win with Rc4.} Bf8 {[%emt 0:02:07]} (38... Rb7 $142 39. Nb2 Qc5) 39. Qxf6 {[%emt 0:00:36]} Rxd5 {[%emt 0:00:08]} 40. Rc4 {[%emt 0:00:26]} ({Resist} 40. Qxf8 Rxe6 41. g4 Red6 42. Qf2+ (42. Rxe5 $2 Rxe5 43. Qf2+ Kb8 $19) 42... Kb8 $18) (40. Rxe5 $2 Rxe5 41. Nxe5 Bg7 $19) 40... Qd6 {[%emt 0:02:43] [#]} 41. Qf7+ $1 {[%emt 0:00:00]} Rb7 {[%emt 0:00:00]} 42. Qf2+ {[%emt 0:00:00]} (42. Bxd5 Rxf7 43. Bxf7 Qf6 $17) 42... Rd4 {[%emt 0:00:00] [#]} 43. Nxe5 $1 {[%emt 0:00:00][%mdl 512]} Qxe5 {[%emt 0:00:00]} 44. Qxd4+ {[%emt 0:00:00]} Qxd4 {[%emt 0:00:00]} 45. Rxd4 $18 {[%emt 0:00:00][%mdl 4096] Endgame KRB-KRB} Bg7 {[%emt 0:00:00]} 46. Rd1 {[%emt 0:00:00]} Re7 {[%emt 0:00:00]} 47. Bf5 {[%emt 0:00:00]} Bh6 {[%emt 0:00:00]} 48. g4 {[%emt 0:00:00]} Re2 {[%emt 0:00:00]} 49. a3 {[%emt 0:01:19]} Bg5 {[%emt 0:00:00]} 50. Ka2 {[%emt 0:01:42] White is clearly winning.} Rh2 {[%emt 0:00:00]} 51. axb4 {[%emt 0:08:44]} axb4 {[%emt 0:00:00]} 52. Rd4 {[%emt 0:00:45]} Bf6 {[%emt 0:00:00]} 53. Rxb4 {[%emt 0:01:14]} Rh1 {[%emt 0:00:00]} 54. Ra4+ {[%emt 0:02:01]} Kb6 {[%emt 0:00:00]} 55. Ka3 {[%emt 0:02:04]} Bc3 {[%emt 0:00:00][%cal Rh1a1]} 56. b4 {[%emt 0:00:29]} Rb1 {[%emt 0:00:00]} 57. h6 {[%emt 0:01:22] Weighted Error Value: White=0.08 (flawless) /Black=0.26 (precise)} 1-0

[Event "German Bundesliga 2021-22"]
[Site "Germany"]
[Date "2022.05.01"]
[Round "6.10"]
[White "Bjerre, Jonas Buhl"]
[Black "Kryvoruchko, Yuriy"]
[Result "1/2-1/2"]
[ECO "C65"]
[WhiteElo "2586"]
[BlackElo "2683"]
[Annotator "TA"]
[PlyCount "52"]
[EventDate "2022.03.05"]
[EventType "team-tourn"]
[EventCountry "GER"]
[SourceTitle "playchess.com"]
[Source "ChessBase"]
[SourceQuality "1"]
[TimeControl "40/5400+30:1800+30"]

{[%evp 11,52,10,22,18,15,7,8,0,18,0,18,5,19,16,25,18,19,0,24,22,23,0,0,0,6,14,8,9,0,0,7,0,0,0,0,0,0,0,0,4,0,0,0]} 1. e4 {[%emt 0:00:00]} e5 {[%emt 0:00:00]} 2. Nf3 {[%emt 0:00:00]} Nc6 {[%emt 0:00:00][%cal Bb8c6,Bc6e7,Be7g6][%mdl 32]} 3. Bb5 {[%emt 0:00:00]} Nf6 {[%emt 0:00:00]} 4. d3 {[%emt 0:00:00][%cal Bd2d3,Bd3d4][%mdl 32]} Bc5 {[%emt 0:00:00][%cal Bf8c5,Bc5b6,Bb6c7][%mdl 32]} 5. c3 {[%emt 0:00:00]} O-O {[%emt 0:00:00]} 6. O-O {[%emt 0:00:00]} d6 {[%emt 0:00:00]} 7. Re1 {[%emt 0:00:00] C65: Ruy Lopez: Berlin Defence (3...Nf6), unusual lines and 4 0-0 Bc5.} Ne7 {[%emt 0:00:00]} 8. d4 {[%emt 0:00:00]} Bb6 {[%emt 0:00:00]} 9. a4 {[%emt 0:00:00] a5 is the strong threat. Nowadays more popular than 9.h3.} c6 {[%emt 0:02:16]} 10. Bf1 {[%emt 0:00:00]} Ng6 {[%emt 0:01:01]} 11. Nbd2 {[%emt 0:03:59]} Re8 {[%emt 0:02:23]} 12. h3 {[%emt 0:02:37]} h6 {[%emt 0:03:54]} 13. Qc2 {[%emt 0:02:31] [#]} Bc7 $146 {[%emt 0:13:21]} ({Predecessor:} 13... Be6 14. b4 Bc7 15. c4 exd4 16. Nxd4 a5 17. b5 Bb6 18. Bb2 Rc8 19. bxc6 bxc6 {½-½ (72) Sethuraman,S (2620)-Sargissian,G (2664) Riga 2021}) 14. dxe5 {[%emt 0:20:35]} Nxe5 {[%emt 0:00:56]} 15. Nxe5 {[%emt 0:03:39]} Rxe5 {[%emt 0:00:37]} 16. Nc4 {[%emt 0:09:58]} (16. Nf3 $5 {[%cal Rf3e5]}) 16... Re6 {[%emt 0:11:22] The position is equal.} 17. Bf4 {[%emt 0:03:02]} d5 {[%emt 0:00:49]} 18. Bxc7 {[%emt 0:04:04]} Qxc7 {[%emt 0:00:12]} 19. exd5 {[%emt 0:00:15]} Nxd5 {[%emt 0:00:04]} 20. Bd3 {[%emt 0:03:32]} Bd7 {[%emt 0:09:06]} 21. Bh7+ {[%emt 0:04:50]} Kf8 {[%emt 0:00:47]} 22. Bf5 {[%emt 0:02:41]} Rxe1+ {[%emt 0:02:05]} 23. Rxe1 {[%emt 0:00:05]} Re8 {[%emt 0:01:37]} 24. Rxe8+ {[%emt 0:07:50]} Bxe8 {[%emt 0:00:26]} 25. Qd2 {[%emt 0:02:19]} b6 {[%emt 0:14:21]} 26. Be4 {[%emt 0:08:22]} Nf6 {[%emt 0:02:13] A balanced but interesting game.  Weighted Error Value: White=0.04 (flawless) /Black=0.02 (flawless)} 1/2-1/2

[Event "German Bundesliga 2021-22"]
[Site "Germany"]
[Date "2022.05.01"]
[Round "6.10"]
[White "Nestorovic, Nikola"]
[Black "Maghsoodloo, Parham"]
[Result "0-1"]
[ECO "B90"]
[WhiteElo "2456"]
[BlackElo "2701"]
[Annotator "TA"]
[PlyCount "90"]
[EventDate "2022.03.05"]
[EventType "team-tourn"]
[EventCountry "GER"]
[SourceTitle "playchess.com"]
[Source "ChessBase"]
[SourceQuality "1"]
[TimeControl "40/5400+30:1800+30"]

{[%evp 17,90,30,45,0,14,4,20,6,0,0,25,11,11,13,18,16,22,8,12,11,26,22,15,18,31,4,35,0,0,-24,-24,-12,0,0,-1,-9,-3,0,-7,-22,-33,-45,-14,-52,-41,-55,-51,-54,-59,-123,-122,-120,-108,-106,-83,-117,-95,-128,-114,-157,-165,-157,-153,-164,-148,-231,-263,-248,-225,-283,-329,-327,-321,-303,-273]} 1. e4 {[%emt 0:00:00]} c5 {[%emt 0:00:00]} 2. Nf3 {[%emt 0:00:00]} d6 {[%emt 0:00:00]} 3. d4 {[%emt 0:00:00]} cxd4 {[%emt 0:00:00]} 4. Nxd4 {[%emt 0:00:00]} Nf6 {[%emt 0:00:00]} 5. Nc3 {[%emt 0:00:00]} a6 {[%emt 0:00:00]} 6. Be3 {[%emt 0:00:00]} e5 {[%emt 0:00:00]} 7. Nf3 {[%emt 0:00:00][%cal Bd4f3,Bf3e1,Be1d3,Bd3b4][%mdl 32]} Qc7 {[%emt 0:00:00]} 8. a4 {[%emt 0:00:00]} h6 {[%emt 0:00:01]} 9. a5 {[%emt 0:00:00]} Be6 {[%emt 0:00:36]} 10. Be2 {[%emt 0:00:00] B90: Sicilian Najdorf: Unusual White 6th moves, 6 Be3 Ng4 and 6 Be3 e5.} Nbd7 {[%emt 0:03:52]} 11. O-O {[%emt 0:00:00]} Rc8 {[%emt 0:07:48][%cal Ba8c8,Bc8c4,Bc4c6][%mdl 32]} (11... Qc6 $5 {[%cal Rf6e4]}) 12. Ne1 {[%emt 0:14:40] The position is equal.} Be7 {[%emt 0:06:00]} 13. Bf3 {[%emt 0:10:43] [#]} Qb8 $146 {[%emt 0:16:57]} ({Predecessor:} 13... O-O 14. Nd3 Rfe8 15. Qd2 Nh7 16. g3 Bg5 17. Rfd1 Bxe3 18. Qxe3 Nhf6 19. Nb4 Nb8 {½-½ (59) Magem Badals,J (2505)-Trichkov,V (2395) Barcelona 1993}) 14. Nd3 {[%emt 0:03:37]} Rc4 {[%emt 0:01:18]} 15. Bd2 {[%emt 0:17:35]} Qc8 {[%emt 0:04:01]} 16. Qe1 {[%emt 0:02:13]} Bd8 {[%emt 0:00:39]} 17. b3 {[%emt 0:04:57]} Rc6 {[%emt 0:00:30]} 18. Nb4 {[%emt 0:05:34]} Rc5 {[%emt 0:00:06]} 19. Na4 {[%emt 0:03:55]} Rxa5 {[%emt 0:00:27]} 20. Nd5 {[%emt 0:09:02]} Rxa4 {[%emt 0:11:16]} 21. Nxf6+ {[%emt 0:11:03]} Nxf6 {[%emt 0:00:26]} 22. Rxa4 {[%emt 0:03:45]} Qxc2 {[%emt 0:00:33]} 23. Qc1 {[%emt 0:03:36]} Qxc1 {[%emt 0:10:32]} ({Don't play} 23... Qxb3 24. Rb4 Qa2 25. Rxb7 $16) 24. Rxc1 {[%emt 0:00:10]} Bd7 {[%emt 0:01:33]} 25. Ra2 {[%emt 0:01:08]} Ke7 {[%emt 0:05:56]} 26. Bb4 {[%emt 0:02:13]} Bb6 {[%emt 0:04:10]} 27. Rd2 {[%emt 0:01:38]} Ne8 {[%emt 0:00:21]} 28. Rcd1 {[%emt 0:01:00][%cal Rd2d6]} Bc6 {[%emt 0:02:09]} 29. Kf1 {[%emt 0:04:32]} h5 {[%emt 0:04:33]} 30. h4 {[%emt 0:00:04]} Rh6 {[%emt 0:04:24]} 31. Rc2 {[%emt 0:01:06]} Nc7 {[%emt 0:01:38]} 32. Bd2 {[%emt 0:00:35]} Rh8 {[%emt 0:00:22]} 33. Bb4 {[%emt 0:00:14]} (33. Rdc1 $15) 33... Nb5 $17 {[%emt 0:00:25]} 34. Bc3 {[%emt 0:03:32]} g6 {[%emt 0:03:31]} 35. Bb2 {[%emt 0:00:21]} a5 {[%emt 0:05:11]} 36. Rcc1 {[%emt 0:00:35]} Bd4 {[%emt 0:00:13]} 37. Rc2 {[%emt 0:00:34]} Ra8 {[%emt 0:03:28]} 38. Bc1 {[%emt 0:00:32]} Nc3 {[%emt 0:00:35]} 39. Re1 {[%emt 0:00:11] [#]} b5 $1 {[%emt 0:00:23][%cal Bb7b5,Bb5b4][%mdl 32] 0x0.00198fc79271dp-1022s more active pieces.} 40. Be3 {[%emt 0:00:20]} b4 {[%emt 0:00:30]} 41. Bxd4 {[%emt 0:00:00] [#]} (41. Ra1 $17) 41... Bb5+ $1 $19 {[%emt 0:00:00]} ({Weaker is} 41... exd4 42. Be2 $17) 42. Kg1 {[%emt 0:01:56]} exd4 {[%emt 0:00:00][%cal Be5d4,Bd4d3,Bd3d2][%mdl 32]} 43. Rd2 {[%emt 0:00:15]} d3 {[%emt 0:00:00] Black has a decisive advantage.} 44. Bd1 {[%emt 0:06:19]} Nb1 {[%emt 0:00:00]} 45. Rb2 {[%emt 0:00:08] [#]} d2 $1 {[%emt 0:00:00] Weighted Error Value: White=0.15 (very precise) /Black=0.05 (flawless)} 0-1

[Event "German Bundesliga 2021-22"]
[Site "Germany"]
[Date "2022.05.01"]
[Round "6.11"]
[White "Korobov, Anton"]
[Black "Thybo, Jesper Sondergaard"]
[Result "1-0"]
[ECO "A05"]
[WhiteElo "2695"]
[BlackElo "2559"]
[Annotator "TA"]
[PlyCount "57"]
[EventDate "2022.03.05"]
[EventType "team-tourn"]
[EventCountry "GER"]
[SourceTitle "playchess.com"]
[Source "ChessBase"]
[SourceQuality "1"]
[TimeControl "40/5400+30:1800+30"]

{[%evp 12,57,-11,-21,-20,-23,-24,-19,-22,-27,-25,-30,-24,-36,-7,-14,-12,-100,24,22,22,23,23,22,72,70,71,75,74,50,440,436,475,472,492,488,485,459,487,477,597,573,1209,1435,1405,1235,1164,1110]} 1. Nf3 {[%emt 0:00:00]} Nf6 {[%emt 0:00:00]} 2. g3 {[%emt 0:00:00]} c5 {[%emt 0:00:00]} 3. Bg2 {[%emt 0:00:00]} Nc6 {[%emt 0:00:00]} 4. O-O {[%emt 0:00:00]} e5 {[%emt 0:00:00]} 5. d3 {[%emt 0:00:00]} d5 {[%emt 0:00:00]} 6. e4 {[%emt 0:00:00]} d4 {[%emt 0:04:33] 6...d4 is better than 6...dxe4.} 7. a4 {[%emt 0:00:00]} Bd6 {[%emt 0:04:11] A08: King's Indian Attack.} 8. Nh4 $5 {[%emt 0:00:01][%mdl 4] A promising side line.} O-O {[%emt 0:02:12]} 9. Nf5 {[%emt 0:03:38]} Bc7 {[%emt 0:14:52] The position is equal.} 10. Bg5 {[%emt 0:05:49] [#]} h6 $146 {[%emt 0:05:42]} ({Predecessor:} 10... Be6 11. Qf3 Bxf5 12. exf5 h6 13. Bxf6 Qxf6 14. Nd2 Qe7 15. Qg4 Nb4 16. Rac1 Bd8 {½-½ (52) Brankovic,D (2290)-Pobor,M (2175) Paracin 2020}) 11. Bh4 {[%emt 0:02:17]} Kh7 {[%emt 0:03:01] [#] aiming for ...g5.} ({Don't do} 11... Bxf5 12. exf5 Na5 13. Nd2 $14) 12. g4 {[%emt 0:09:00]} g5 {[%emt 0:05:50]} 13. Bg3 {[%emt 0:00:27]} Ne7 {[%emt 0:00:19]} 14. h4 {[%emt 0:17:40] [#]} (14. h3 $11) 14... Ng6 {[%emt 0:11:23]} (14... gxh4 $1 $17 15. Bxh4 Ng6) 15. hxg5 $11 {[%emt 0:01:28]} hxg5 {[%emt 0:00:06]} 16. Bf3 {[%emt 0:05:15]} Rh8 {[%emt 0:06:47]} 17. Kg2 {[%emt 0:00:37]} Nf4+ {[%emt 0:03:14]} (17... Bxf5 $11 18. exf5 Nh4+ 19. Bxh4 gxh4) 18. Bxf4 $16 {[%emt 0:00:53]} exf4 {[%emt 0:00:05]} 19. Rh1+ {[%emt 0:03:47]} Kg6 {[%emt 0:00:15]} 20. Nd2 {[%emt 0:00:24] Black must now prevent Qe2. Dancing on a razor blade.} Rb8 $2 {[%emt 0:15:17][%mdl 8192] A mistake that costs the game.} ({Better is} 20... Rxh1 $1 $14 21. Qxh1 Bxf5 22. gxf5+ (22. exf5+ Kg7 $14) 22... Kg7) 21. Qe2 $18 {[%emt 0:04:08] White is clearly winning.} Nd7 {[%emt 0:15:23]} 22. Rxh8 {[%emt 0:02:29]} Qxh8 {[%emt 0:00:02]} 23. Rh1 {[%emt 0:00:13][%cal Ba1h1,Bh1h5,Bh5h6][%mdl 32]} Qf8 {[%emt 0:00:05]} 24. Qe1 {[%emt 0:18:03]} Ne5 {[%emt 0:01:25]} 25. Rh5 {[%emt 0:00:15]} Kf6 {[%emt 0:04:02]} 26. Rh6+ {[%emt 0:02:12]} Ng6 {[%emt 0:00:16]} 27. e5+ {[%emt 0:00:18][%cal Be4e5,Be5e6][%mdl 32]} Ke6 {[%emt 0:02:01]} 28. Ne4 {[%emt 0:01:35] Pair of Knights!} Kd7 {[%emt 0:02:00]} 29. e6+ {[%emt 0:01:24] Weighted Error Value: White=0.09 (flawless) /Black=0.56} 1-0

[Event "German Bundesliga 2021-22"]
[Site "Germany"]
[Date "2022.05.01"]
[Round "6.11"]
[White "Eljanov, Pavel"]
[Black "Rozentalis, Eduardas"]
[Result "1-0"]
[ECO "E18"]
[WhiteElo "2681"]
[BlackElo "2542"]
[Annotator "TA"]
[PlyCount "101"]
[EventDate "2022.03.05"]
[EventType "team-tourn"]
[EventCountry "GER"]
[SourceTitle "playchess.com"]
[Source "ChessBase"]
[SourceQuality "1"]
[TimeControl "40/5400+30:1800+30"]

{[%evp 14,101,18,11,20,20,24,25,22,3,56,62,57,69,64,64,65,64,63,75,59,68,66,66,77,71,71,77,117,117,119,109,173,171,164,170,166,158,216,216,229,236,224,192,289,288,379,392,387,318,324,329,322,306,370,341,1316,1199,1652,1542,1430,1357,2046,2093,1884,2015,1785,1777,1277,1462,29959,29960,29960,12529,5518,5618,2043,519,1029,1006,898,826,1545,1560,1405,1370,1373,1387,710,1065]} 1. d4 {[%emt 0:00:00]} Nf6 {[%emt 0:00:00]} 2. c4 {[%emt 0:00:00]} e6 {[%emt 0:00:00]} 3. Nf3 {[%emt 0:00:00]} b6 {[%emt 0:00:00]} 4. g3 {[%emt 0:00:00]} Bb7 {[%emt 0:00:00]} 5. Bg2 {[%emt 0:00:00]} Be7 {[%emt 0:00:00]} 6. O-O {[%emt 0:00:00]} O-O {[%emt 0:00:00]} 7. Re1 {[%emt 0:00:00]} Na6 {[%emt 0:00:00]} 8. Nc3 {[%emt 0:00:00]} Ne4 {[%emt 0:00:00] E18: Queen's Indian: Old Main Line (4 g3 Bb7 5 Bg2 Be7 6 0-0 0-0 7 Nc3).} 9. h4 {[%emt 0:00:00]} Nxc3 {[%emt 0:00:46]} 10. bxc3 {[%emt 0:00:00]} Be4 {[%emt 0:00:04] [#] White has an edge.} 11. Bf1 $5 $146 {[%emt 0:18:36][%mdl 8] An interesting novelty.} ({Predecessor:} 11. Ng5 Bxg2 12. Kxg2 Bxg5 13. hxg5 f6 14. gxf6 Qxf6 15. f3 Nb8 16. Qd3 Nc6 17. Rh1 {1-0 (46) Sargissian,G (2689)-Ly,M (2486) Chess.com INT 2019}) 11... Bxf3 {[%emt 0:10:18]} (11... f5 $11) 12. exf3 $14 {[%emt 0:00:06]} c6 {[%emt 0:00:08]} 13. Bd3 {[%emt 0:14:04]} Nc7 {[%emt 0:01:25]} 14. Qc2 {[%emt 0:00:06]} h6 {[%emt 0:12:23]} 15. Qe2 {[%emt 0:03:43] White is more active.} d5 {[%emt 0:00:30]} 16. Bc2 {[%emt 0:04:36]} Qd7 {[%emt 0:09:03]} 17. Qd3 {[%emt 0:01:19][%csl Gc2][%cal Rd3h7] [#]} f5 {[%emt 0:00:54]} 18. Kg2 {[%emt 0:00:42]} Bd6 {[%emt 0:10:18] Black is now going downhill.} 19. a4 {[%emt 0:04:38][%cal Ba2a4,Ba4a5][%mdl 32]} Rae8 {[%emt 0:06:01]} 20. a5 {[%emt 0:02:09]} b5 {[%emt 0:03:28]} 21. c5 {[%emt 0:00:30]} Be7 {[%emt 0:00:05]} 22. Bf4 {[%emt 0:00:08] [#] And now Bxc7 would win.} Bd8 {[%emt 0:04:42]} (22... Na6 $16 {was worth a try.}) 23. h5 $18 {[%emt 0:00:47]} Na6 {[%emt 0:05:42]} 24. g4 {[%emt 0:14:01]} Bc7 {[%emt 0:00:47]} 25. Bg3 {[%emt 0:00:04]} Rf6 {[%emt 0:17:07]} (25... Re7 $16 {might work better.} 26. f4 g5) 26. Re2 {[%emt 0:04:02]} Bxg3 {[%emt 0:02:42]} 27. fxg3 {[%emt 0:00:08]} (27. Kxg3 Qc7+ 28. f4 Ref8 $16) 27... Kf8 {[%emt 0:01:32]} 28. Re5 {[%emt 0:08:30]} fxg4 {[%emt 0:03:40]} (28... Qf7 $142 29. f4 (29. gxf5 exf5 30. Rae1 Nc7 $14) 29... fxg4) 29. fxg4 {[%emt 0:00:08]} Ke7 {[%emt 0:01:06]} 30. g5 {[%emt 0:02:18]} hxg5 {[%emt 0:01:20]} 31. Rxg5 {[%emt 0:00:04][%cal Be5g5,Bg5g7,Bg7g8][%mdl 32] Chess con chili.} Kd8 {[%emt 0:00:28]} 32. Rf1 {[%emt 0:02:20]} Rxf1 {[%emt 0:02:34]} 33. Qxf1 {[%emt 0:00:25]} ({Weaker is} 33. Kxf1 Nc7 $14) 33... Qc7 {[%emt 0:02:46]} 34. Bg6 {[%emt 0:02:43]} Rh8 {[%emt 0:02:11]} (34... Qe7) 35. Bf7 {[%emt 0:00:30]} Qe7 {[%emt 0:02:21]} 36. Rxg7 {[%emt 0:00:10]} e5 {[%emt 0:00:12]} 37. h6 {[%emt 0:06:24]} Rxh6 {[%emt 0:01:55]} 38. Rg8+ {[%emt 0:00:20]} Kc7 {[%emt 0:00:07]} 39. Qf5 {[%emt 0:00:06][%csl Gg8][%cal Rf5c8]} Qd7 {[%emt 0:00:06] Prevents Qc8+.} 40. Qxe5+ {[%emt 0:00:20]} Kb7 {[%emt 0:00:08]} 41. Bh5 {[%emt 0:36:03]} Rh7 {[%emt 0:00:00] Prevents Rg7.} 42. Bg4 {[%emt 0:00:00]} Rh2+ {[%emt 0:00:00]} 43. Kxh2 {[%emt 0:00:00]} Qh7+ {[%emt 0:00:00] White is clearly winning.} 44. Kg2 {[%emt 0:00:00] Threatening mate with Bc8+.} Qxg8 {[%emt 0:00:00]} 45. Be6 {[%emt 0:00:00]} (45. Qe7+ $142 Nc7 46. Bd7) 45... Qd8 {[%emt 0:00:00]} (45... Qe8 $142 46. g4 b4 47. cxb4 Nxb4) 46. Qg7+ {[%emt 0:00:00]} Nc7 {[%emt 0:00:00]} 47. Bd7 {[%emt 0:00:00][%cal Be6d7,Bd7c6,Bc6b5][%mdl 32]} Ka6 {[%emt 0:00:00]} 48. Bxc6 {[%emt 0:00:00] Qg6 would kill now.} Kxa5 {[%emt 0:00:00]} 49. Qh7 {[%emt 0:00:00] White wants to mate with Qc2.} Ka4 {[%emt 0:00:00]} 50. Qb1 {[%emt 0:00:00][%csl Gc3][%cal Rb1b4]} Ka3 {[%emt 0:00:00]} 51. Bxb5 {[%emt 0:00:00] Weighted Error Value: White=0.30/Black=0.50} 1-0